fUSD/lending_fUSD_20260227
["ID","MTS","AMOUNT","RATE_DAILY","PERIOD"]
[406781513,1772182240293,-500.0,0.00013698,2]
[406781514,1772182240303,-500.0,0.00013698,2]
[406781515,1772182240313,-502.14269457,0.00013698,2]
[406781516,1772182240322,-9312.16,0.000137,2]
[406781517,1772182240332,-166.66,0.00013794,2]
[406781518,1772182240342,-200.0,0.00013836,2]
[406781519,1772182240352,-468.0,0.00013872,2]
[406781520,1772182240475,-150.0,0.00013872,2]
[406781521,1772182240485,-468.0,0.00013927,2]
[406781522,1772182240494,-150.0,0.00013927,2]
[406781523,1772182240504,-468.0,0.00013982,2]
[406781524,1772182240513,-200.0,0.00013982,2]
[406781525,1772182240524,-468.0,0.00014036,2]
[406781526,1772182240533,-166.66,0.00014079,2]
[406781527,1772182240542,-468.0,0.00014091,2]
[406781528,1772182240551,-236.17,0.00014098,2]
[406781529,1772182240560,-468.0,0.00014146,2]
[406781530,1772182240569,-200.0,0.000142,2]
[406781531,1772182240578,-468.0,0.00014201,2]
[406781532,1772182240588,-468.0,0.00014256,2]
[406781533,1772182240597,-468.0,0.0001431,2]
[406781534,1772182240606,-166.66,0.00014363,2]
[406781535,1772182240615,-468.0,0.00014365,2]
[406781536,1772182240625,-200.0,0.00014384,2]
[406781537,1772182240634,-468.0,0.0001442,2]
[406781538,1772182240644,-468.0,0.00014475,2]
[406781539,1772182240653,-468.0,0.0001453,2]
[406781540,1772182240663,-468.0,0.00014584,2]
[406781541,1772182240672,-9491.0,0.00014597,2]
[406781542,1772182240681,-174.302118,0.0001463,7]
[406781543,1772182240690,-468.0,0.00014639,2]
[406781544,1772182240700,-166.66,0.00014648,2]
[406781545,1772182240709,-468.0,0.00014694,2]
[406781546,1772182240718,-468.0,0.00014749,2]
[406781547,1772182240728,-468.0,0.00014804,2]
[406781548,1772182240737,-2189.23,0.00014853,2]
[406781549,1772182240746,-468.0,0.00014858,2]
[406781550,1772182240755,-509.0,0.0001489,2]
[406781551,1772182240765,-205.22,0.00014898,2]
[406781552,1772182240774,-468.0,0.00014913,2]
[406781554,1772182240783,-166.66,0.00014932,2]
[406781555,1772182240792,-200.0,0.00014932,2]
[406781556,1772182240801,-468.0,0.00014968,2]
[406781557,1772182240810,-468.0,0.00015023,2]
[406781558,1772182240819,-468.0,0.00015077,2]
[406781559,1772182240828,-486.0,0.00015132,2]
[406781560,1772182240838,-3079.52,0.000153,14]
[406781561,1772182240847,-3623.661199,0.00015455,7]
[406781562,1772182240856,-3132.517972,0.00015455,7]
[406781563,1772182240866,-200.0,0.0001548,2]
[406781564,1772182240875,-151.0,0.00015529,2]
[406781565,1772182240884,-874.83,0.00015613,2]
[406781566,1772182240893,-500.0,0.00015624,2]
[406781567,1772182240903,-599.83,0.00015887,2]
[406781568,1772182240913,-200.0,0.00016028,2]
[406781569,1772182240922,-177.4092433,0.00016056,2]
[406781570,1772182240931,-269.917619,0.0001622,2]
[406781571,1772182240941,-250.0,0.0001622,2]
[406781572,1772182240950,-200.0,0.0001622,2]
[406781573,1772182240958,-250.0,0.0001622,2]
[406781574,1772182240968,-695.39793187,0.0001622,2]
[406781575,1772182240978,-500.0,0.0001622,2]
[406781576,1772182240987,-203.16821777,0.0001622,2]
[406781577,1772182240995,-250.0,0.0001622,2]
[406781578,1772182241005,-500.0,0.0001622,2]
[406781579,1772182241014,-250.0,0.0001622,2]
[406781580,1772182241024,-500.0,0.0001622,2]
[406781581,1772182241044,-250.0,0.0001622,2]
[406781582,1772182241057,-500.0,0.0001622,2]
[406781583,1772182241073,-250.0,0.0001622,2]
[406781584,1772182241082,-500.0,0.0001622,2]
[406781585,1772182241091,-282.88499327,0.0001622,2]
[406781586,1772182241101,-500.0,0.0001622,2]
[406781587,1772182241110,-174.61919141,0.0001622,2]
[406781588,1772182241120,-500.0,0.0001622,2]
[406781589,1772182241131,-500.0,0.0001622,2]
[406781590,1772182241140,-500.0,0.0001622,2]
[406781591,1772182241150,-480.10305259,0.0001622,2]
[406781592,1772182241160,-578.20924308,0.0001622,2]
[406781593,1772182241170,-250.0,0.0001622,2]
[406781594,1772182241179,-250.0,0.0001622,2]
[406781595,1772182241187,-250.0,0.0001622,2]
[406781596,1772182241196,-250.0,0.0001622,2]
[406781597,1772182241206,-250.0,0.0001622,2]
[406781598,1772182241215,-250.0,0.0001622,2]
[406781599,1772182241225,-250.0,0.0001622,2]
[406781600,1772182241237,-250.0,0.0001622,2]
[406781601,1772182241246,-668.65185757,0.0001622,2]
[406781602,1772182241256,-250.0,0.0001622,2]
[406781603,1772182241266,-250.0,0.0001622,2]
[406781604,1772182241275,-250.0,0.0001622,2]
[406781605,1772182241284,-500.0,0.0001622,2]
[406781606,1772182241297,-250.0,0.0001622,2]
[406781607,1772182241308,-500.0,0.0001622,2]
[406781608,1772182241318,-500.0,0.0001622,2]
[406781609,1772182241327,-500.0,0.0001622,2]
[406781610,1772182241337,-500.0,0.0001622,2]
[406781611,1772182241346,-500.0,0.0001622,2]
[406781612,1772182241356,-500.0,0.0001622,2]
[406781613,1772182241367,-151.0,0.0001622,2]
[406781614,1772182241375,-500.0,0.0001622,2]
[406781615,1772182241387,-500.0,0.0001622,2]
[406781616,1772182241396,-151.0,0.0001622,2]
[406781617,1772182241405,-500.0,0.0001622,2]
[406781618,1772182241414,-500.0,0.0001622,2]
[406781619,1772182241423,-151.0,0.0001622,2]
[406781620,1772182241432,-500.0,0.0001622,2]
[406781621,1772182241442,-743.50770149,0.0001622,2]
[406781622,1772182241451,-151.0,0.0001622,2]
[406781623,1772182241460,-500.0,0.0001622,2]
[406781624,1772182241470,-500.0,0.0001622,2]
[406781625,1772182241479,-151.0,0.0001622,2]
[406781626,1772182241489,-500.0,0.0001622,2]
[406781627,1772182241498,-500.0,0.0001622,2]
[406781628,1772182241507,-500.0,0.0001622,2]
[406781629,1772182241517,-151.0,0.0001622,2]
[406781630,1772182241526,-500.0,0.0001622,2]
[406781631,1772182241535,-500.0,0.0001622,2]
[406781632,1772182241544,-500.0,0.0001622,2]
[406781633,1772182241553,-500.0,0.0001622,2]
[406781634,1772182241562,-151.0,0.0001622,2]
[406781635,1772182241570,-500.0,0.0001622,2]
[406781636,1772182241579,-500.0,0.0001622,2]
[406781637,1772182241588,-500.0,0.0001622,2]
[406781638,1772182241597,-151.0,0.0001622,2]
[406781639,1772182241608,-500.0,0.0001622,2]
[406781640,1772182241618,-500.0,0.0001622,2]
[406781641,1772182241629,-500.0,0.0001622,2]
[406781642,1772182241639,-500.0,0.0001622,2]
[406781643,1772182241649,-151.0,0.0001622,2]
[406781644,1772182241659,-500.0,0.0001622,2]
[406781645,1772182241668,-500.0,0.0001622,2]
[406781646,1772182241677,-151.0,0.0001622,2]
[406781647,1772182241687,-151.0,0.0001622,2]
[406781648,1772182241697,-500.0,0.0001622,2]
[406781649,1772182241706,-500.0,0.0001622,2]
[406781650,1772182241716,-151.0,0.0001622,2]
[406781651,1772182241727,-151.0,0.0001622,2]
[406781652,1772182241736,-500.0,0.0001622,2]
[406781653,1772182241746,-500.0,0.0001622,2]
[406781654,1772182241756,-500.0,0.0001622,2]
[406781655,1772182241766,-500.0,0.0001622,2]
[406781656,1772182241775,-500.0,0.0001622,2]
[406781657,1772182241784,-500.0,0.0001622,2]
[406781658,1772182241793,-500.0,0.0001622,2]
[406781659,1772182241803,-500.0,0.0001622,2]
[406781660,1772182241813,-500.0,0.0001622,2]
[406781661,1772182241822,-500.0,0.0001622,2]
[406781662,1772182241832,-500.0,0.0001622,2]
[406781663,1772182241841,-500.0,0.0001622,2]
[406781664,1772182241850,-500.0,0.0001622,2]
[406781665,1772182241859,-500.0,0.0001622,2]
[406781666,1772182241868,-500.0,0.0001622,2]
[406781667,1772182241880,-151.0,0.0001622,2]
[406781668,1772182241889,-500.0,0.0001622,2]
[406781669,1772182241898,-267.46074303,0.0001622,2]
[406781670,1772182241908,-250.0,0.0001622,2]
[406781671,1772182241918,-250.0,0.0001622,2]
[406781672,1772182241928,-250.0,0.0001622,2]
[406781673,1772182241937,-250.0,0.0001622,2]
[406781674,1772182241947,-250.0,0.0001622,2]
[406781675,1772182241958,-250.0,0.0001622,2]
[406781676,1772182241967,-250.0,0.0001622,2]
[406781677,1772182241977,-250.0,0.0001622,2]
[406781678,1772182241986,-250.0,0.0001622,2]
[406781679,1772182241996,-250.0,0.0001622,2]
[406781680,1772182242005,-250.0,0.0001622,2]
[406781681,1772182242014,-250.0,0.0001622,2]
[406781682,1772182242024,-693.3919763,0.00016275,2]
[406781683,1772182242034,-151.0,0.00016275,2]
[406781684,1772182242044,-236.17,0.00016308,2]
[406781685,1772182242053,-719.04747942,0.0001633,2]
[406781686,1772182242062,-151.0,0.0001633,2]
[406781687,1772182242071,-745.65223616,0.00016385,2]
[406781688,1772182242194,-151.0,0.00016385,2]
[406781689,1772182242204,-2114.50238172,0.00016413,2]
[406781690,1772182242213,-158.83553081,0.00016438,2]
[406781691,1772182242222,-500.0,0.00016438,2]
[406781692,1772182242231,-773.2413689,0.0001644,2]
[406781693,1772182242240,-151.0,0.0001644,2]
[406781694,1772182242250,-500.0,0.00016493,2]
[406781695,1772182242259,-801.85129955,0.00016495,2]
[406781696,1772182242268,-151.0,0.00016495,2]
[406781697,1772182242277,-500.0,0.00016548,2]
[406781698,1772182242287,-831.51979763,0.0001655,2]
[406781699,1772182242299,-151.0,0.0001655,2]
[406781700,1772182242308,-200.0,0.00016576,2]
[406781701,1772182242317,-500.0,0.00016602,2]
[406781702,1772182242327,-862.28603014,0.00016605,2]
[406781703,1772182242336,-151.0,0.00016605,2]
[406781704,1772182242346,-500.0,0.00016657,2]
[406781705,1772182242355,-894.19061326,0.0001666,2]
[406781706,1772182242364,-151.0,0.0001666,2]
[406781707,1772182242375,-500.0,0.00016712,2]
[406781708,1772182242386,-165.5,0.00016712,2]
[406781709,1772182242396,-927.27566595,0.00016715,2]
[406781710,1772182242405,-151.0,0.00016715,2]
[406781711,1772182242415,-500.0,0.00016767,2]
[406781712,1772182242424,-279.9045709,0.00016768,2]
[406781713,1772182242433,-181.08010149,0.00016768,2]
[406781714,1772182242443,-771.01748645,0.00016768,2]
[406781715,1772182242452,-156.60529538,0.00016768,2]
[406781716,1772182242461,-277.35679052,0.00016768,2]
[406781717,1772182242471,-961.58486559,0.0001677,2]
[406781718,1772182242480,-154.60993757,0.0001677,2]
[406781719,1772182242489,-500.0,0.00016798,2]
[406781720,1772182242498,-487.87443356,0.00016822,2]
[406781721,1772182242508,-997.16350561,0.00016825,2]
[406781722,1772182242517,-9502.10782841,0.00016987,2]
[406781723,1772182242526,-10000.0,0.00016987,2]
[406781724,1772182242535,-5832.8299848,0.00017,2]
[406781725,1772182242544,-507.51471813,0.00017,2]
[406781726,1772182242553,-1500.0,0.00017007,2]
[406781727,1772182242562,-233.49278422,0.00017077,2]
[406781728,1772182242571,-151.0,0.00017084,2]
[406781729,1772182242581,-151.0,0.00017084,2]
[406781730,1772182242590,-721596.81256669,0.00017087,2]
[406781738,1772182243431,-3159.46755205,0.00017087,2]
[406781740,1772182243655,-26117.43658238,0.00017087,2]
[406781741,1772182243683,-6260.77965526,0.00017087,2]
[406781742,1772182243695,-780.71761163,0.00017087,2]
[406781743,1772182243723,-470.35649669,0.00017087,2]
[406781744,1772182243734,-914131.7666158,0.00017087,2]
[406781745,1772182243743,-30802.1679087,0.00017087,2]
[406781746,1772182243751,-151.0,0.00017087,2]
[406781747,1772182243760,-151.0,0.00017087,2]
[406781748,1772182243770,-231.965238,0.00017087,2]
[406781749,1772182243779,-516.163067,0.00017087,2]
[406781750,1772182243788,-516.163067,0.00017087,2]
[406781751,1772182243798,-471.913146,0.00017087,2]
[406781752,1772182243807,-516.163067,0.00017087,2]
[406781753,1772182243816,-471.913146,0.00017087,2]
[406781754,1772182243826,-516.163067,0.00017087,2]
[406781755,1772182243835,-471.913146,0.00017087,2]
[406781756,1772182243844,-471.913146,0.00017087,2]
[406781757,1772182243854,-151.0,0.00017087,2]
[406781758,1772182243863,-151.0,0.00017087,2]
[406781759,1772182243872,-448.906004,0.00017087,2]
[406781760,1772182243882,-448.906004,0.00017087,2]
[406781761,1772182243891,-448.906004,0.00017087,2]
[406781762,1772182243900,-448.906004,0.00017087,2]
[406781763,1772182243909,-151.0,0.00017087,2]
[406781764,1772182243918,-151.0,0.00017087,2]
[406781765,1772182243927,-200.0,0.00017124,2]
[406781766,1772182243936,-205.22,0.00017135,2]
[406781767,1772182243945,-509.0,0.00017135,4]
[406781768,1772182243955,-9502.10782839,0.0001717,2]
[406781769,1772182243964,-174.00015664,0.00017206,2]
[406781770,1772182243973,-160.0,0.00017207,2]
[406781771,1772182243982,-992.17539101,0.00017215,2]
[406781772,1772182243991,-290.26104003,0.00017316,2]
[406781773,1772182244001,-187.78006525,0.00017316,2]
[406781774,1772182244011,-799.54513345,0.00017316,2]
[406781775,1772182244020,-287.61899177,0.00017316,2]
[406781776,1772182244030,-9502.10782839,0.00017352,2]
[406781777,1772182244039,-150.0,0.0001737,2]
[406781778,1772182244048,-205.22,0.00017471,2]
[406781779,1772182244058,-9502.10782839,0.00017535,2]
[406781780,1772182244067,-150.0,0.00017542,2]
[406781781,1772182244077,-200.0,0.00017672,2]
[406781782,1772182244086,-9502.10782839,0.00017717,2]
[406781783,1772182244095,-269.0,0.00017728,2]
[406781784,1772182244105,-500.0,0.00017762,2]
[406781785,1772182244115,-174.00015664,0.000178,3]
[406781786,1772182244126,-160.0,0.000178,3]
[406781787,1772182244136,-307.5751693,0.000178,2]
[406781788,1772182244145,-187.75489265,0.000178,2]
[406781789,1772182244155,-10152.79913159,0.000178,2]
[406781790,1772182244167,-500.0,0.00017808,2]
[406781791,1772182244177,-200.0,0.00017808,3]
[406781792,1772182244186,-151.0,0.00017808,2]
[406781793,1772182244197,-151.0,0.00017808,2]
[406781794,1772182244207,-908.80438,0.0001782,2]
[406781795,1772182244217,-908.80439,0.0001782,2]
[406781796,1772182244227,-500.0,0.00017858,2]
[406781797,1772182244236,-500.0,0.00017858,2]
[406781798,1772182244245,-297.82549676,0.00017858,2]
[406781799,1772182244254,-500.0,0.00017863,2]
[406781800,1772182244263,-301.00069851,0.00017864,2]
[406781801,1772182244273,-194.72792766,0.00017864,2]
[406781802,1772182244282,-829.12830338,0.00017864,2]
[406781803,1772182244296,-298.26089446,0.00017864,2]
[406781804,1772182244307,-213.26045152,0.00017873,2]
[406781805,1772182244316,-171.032,0.0001789,2]
[406781806,1772182244326,-171.032,0.0001789,2]
[406781807,1772182244338,-171.032,0.0001789,2]
[406781808,1772182244349,-171.032,0.0001789,2]
[406781809,1772182244359,-171.032,0.0001789,2]
[406781810,1772182244372,-171.032,0.0001789,2]
[406781811,1772182244382,-450.07220255,0.0001789,2]
[406781812,1772182244391,-160.10219675,0.0001789,2]
[406781813,1772182244401,-1000.0,0.000179,2]
[406781814,1772182244411,-961241.3632,0.000179,2]
[406781815,1772182244420,-32885.2992,0.000179,2]
[406781816,1772182244428,-151.0,0.000179,2]
[406781817,1772182244437,-417.220047,0.000179,2]
[406781818,1772182244446,-417.220047,0.000179,2]
[406781819,1772182244456,-417.220047,0.000179,2]
[406781820,1772182244465,-417.220047,0.000179,2]
[406781821,1772182244474,-283.839358,0.000179,2]
[406781822,1772182244484,-283.839358,0.000179,2]
[406781823,1772182244493,-283.839358,0.000179,2]
[406781824,1772182244501,-548.798362,0.000179,2]
[406781825,1772182244510,-283.839358,0.000179,2]
[406781826,1772182244519,-548.798362,0.000179,2]
[406781827,1772182244528,-548.798362,0.000179,2]
[406781828,1772182244538,-548.798362,0.000179,2]
[406781829,1772182244547,-151.0,0.000179,2]
[406781830,1772182244555,-151.0,0.000179,2]
[406781831,1772182244564,-294.633956,0.000179,2]
[406781832,1772182244573,-151.0,0.000179,2]
[406781833,1772182244582,-151.0,0.000179,2]
[406781834,1772182244590,-246.873954,0.000179,2]
[406781835,1772182244599,-151.0,0.000179,2]
[406781836,1772182244608,-278.322927,0.000179,2]
[406781837,1772182244616,-151.0,0.000179,2]
[406781838,1772182244625,-516.163067,0.000179,2]
[406781839,1772182244634,-516.163067,0.000179,2]
[406781840,1772182244643,-471.913146,0.000179,2]
[406781841,1772182244652,-516.163067,0.000179,2]
[406781842,1772182244661,-471.913146,0.000179,2]
[406781843,1772182244671,-516.163067,0.000179,2]
[406781844,1772182244681,-471.913146,0.000179,2]
[406781845,1772182244690,-471.913146,0.000179,2]
[406781846,1772182244699,-1465.98350787,0.000179,2]
[406781847,1772182244709,-151.0,0.000179,2]
[406781848,1772182244718,-151.0,0.000179,2]
[406781849,1772182244728,-2114.50238172,0.000179,2]
[406781850,1772182244738,-448.906004,0.000179,2]
[406781851,1772182244748,-448.906004,0.000179,2]
[406781852,1772182244758,-448.906004,0.000179,2]
[406781853,1772182244767,-448.906004,0.000179,2]
[406781854,1772182244777,-151.0,0.000179,2]
[406781855,1772182244787,-151.0,0.000179,2]
[406781856,1772182244797,-9502.10782839,0.000179,2]
[406781857,1772182244808,-321.0,0.00017917,2]
[406781858,1772182244818,-500.0,0.00017918,2]
[406781859,1772182244827,-500.0,0.0001795,2]
[406781860,1772182244837,-500.0,0.00017972,2]
[406781861,1772182244847,-308.59204947,0.00017973,2]
[406781862,1772182244856,-500.0,0.00017973,2]
[406781863,1772182244866,-520.55026084,0.00017973,2]
[406781864,1772182244875,-504.20237615,0.00017973,2]
[406781865,1772182244885,-500.0,0.00017973,2]
[406781866,1772182244895,-233.49278422,0.0001799,2]
[406781867,1772182244904,-233.49278422,0.0001799,2]
[406781868,1772182244913,-383.3281671,0.00017999,2]
[406781869,1772182244922,-500.0,0.00017999,2]
[406781870,1772182244931,-500.0,0.00017999,2]
[406781871,1772182244942,-300.0,0.00017999,2]
[406781872,1772182244952,-300.0,0.00017999,2]
[406781873,1772182244961,-150.0,0.00017999,2]
[406781874,1772182244970,-150.0,0.00017999,2]
[406781875,1772182244979,-150.0,0.00017999,2]
[406781876,1772182244988,-150.0,0.00017999,2]
[406781877,1772182244997,-150.0,0.00017999,2]
[406781878,1772182245007,-234.63198769,0.00017999,2]
[406781879,1772182245017,-1000.0,0.00018,2]
[406781880,1772182245026,-1000.0,0.00018,2]
[406781881,1772182245035,-1000.0,0.00018,2]
[406781882,1772182245044,-612.14922787,0.00018,2]
[406781883,1772182245054,-724655.03925482,0.00018,2]
[406781884,1772182245063,-1000.0,0.00018,2]
[406781885,1772182245072,-1425.08778723,0.00018,2]
[406781886,1772182245083,-4223248.05426615,0.00018,2]
[406781887,1772182245173,-234.86687052,0.00013598,2]
[406781888,1772182245182,-97464.86878566,0.00018,2]
[406781898,1772182246248,-234.86687044,0.00014076,2]
[406781899,1772182246258,-174.3658173,0.00018,2]
[406781902,1772182563355,150.0,0.00015536,120]
[406781903,1772182947716,-2852.585675,9.898e-05,2]
[406781904,1772182947738,-4294.83865,9.898e-05,2]
[406781905,1772182950572,-300.0,9.948e-05,2]
[406781906,1772182950606,-284.40408352,9.949e-05,2]
[406781907,1772182950635,-300.0,9.949e-05,2]
[406781908,1772182950662,-300.0,9.949e-05,2]
[406781909,1772182950694,-1167.0,9.949e-05,2]
[406781910,1772182950800,-5297.20183296,9.95e-05,2]
[406781911,1772182953581,-10000.01,9.95e-05,2]
[406781919,1772183432106,-150.0,9.848e-05,2]
[406781920,1772183432116,-193.01153381,9.848e-05,2]
[406781921,1772183432128,-1000.0,9.848e-05,2]
[406781922,1772183432142,-6.98846619,9.848e-05,2]
[406781923,1772183432151,-195.0,9.849e-05,2]
[406781924,1772183432160,-1126.62792254,9.849e-05,2]
[406781925,1772183432169,-214.06910116,9.849e-05,2]
[406781926,1772183432178,-500.0,9.849e-05,2]
[406781927,1772183432187,-500.0,9.849e-05,2]
[406781928,1772183432196,-500.0,9.849e-05,2]
[406781929,1772183432206,-500.0,9.849e-05,2]
[406781930,1772183432215,-500.0,9.849e-05,2]
[406781931,1772183432224,-500.0,9.849e-05,2]
[406781932,1772183432233,-500.0,9.849e-05,2]
[406781933,1772183432242,-500.0,9.849e-05,2]
[406781934,1772183432251,-500.0,9.849e-05,2]
[406781935,1772183432259,-500.0,9.849e-05,2]
[406781936,1772183432268,-500.0,9.849e-05,2]
[406781937,1772183432277,-500.0,9.849e-05,2]
[406781938,1772183432286,-500.0,9.849e-05,2]
[406781939,1772183432295,-500.0,9.849e-05,2]
[406781940,1772183432304,-500.0,9.849e-05,2]
[406781941,1772183432313,-230.73240033,9.849e-05,2]
[406781942,1772183432322,-500.0,9.849e-05,2]
[406781943,1772183432331,-500.0,9.849e-05,2]
[406781944,1772183432339,-2882.7787772,9.85e-05,2]
[406781945,1772183432353,-1305.0,9.85e-05,2]
[406781946,1772183432364,-501.0,9.85e-05,2]
[406781947,1772183432375,-835.60817854,9.85e-05,2]
[406781948,1772183432391,-914.19486911,9.85e-05,2]
[406781949,1772183432402,-12962.00126892,9.85e-05,2]
[406781950,1772183432414,-346.84803172,9.85e-05,2]
[406781951,1772183432425,-1445.03891421,9.85e-05,2]
[406781952,1772183432436,-2351.54804654,9.85e-05,2]
[406781953,1772183432447,-456.50541151,9.85e-05,2]
[406781958,1772183438203,-302.92287827,9.85e-05,2]
[406781959,1772183438216,-459081.53621572,9.85e-05,2]
[406781960,1772183438254,-2206.24593183,9.85e-05,2]
[406781961,1772183438309,-510.40022984,9.85e-05,2]
[406781962,1772183438364,-11432.65386365,9.85e-05,2]
[406782033,1772183440311,-87870.51562171,9.85e-05,2]
[406782034,1772183440628,-19999.755009,9.85e-05,2]
[406782035,1772183440640,-570.54789703,9.85e-05,2]
[406782038,1772183443408,-8830.35948265,9.85e-05,2]
[406782039,1772183443420,-77692.49999989,9.85e-05,2]
[406782058,1772183482824,-21650.0,9.85e-05,2]
[406782059,1772183628573,-216.547,9.653e-05,2]
[406782060,1772183628594,-165.22219197,9.653e-05,2]
[406782061,1772183628617,-300.0,9.749e-05,2]
[406782062,1772183628640,-500.0,9.749e-05,2]
[406782063,1772183628663,-414.52582226,9.749e-05,2]
[406782064,1772183628686,-37203.70498577,9.75e-05,2]
[406782077,1772184385584,251.32,5.503e-05,2]
[406782078,1772184385776,251.32,5.74e-05,2]
[406782079,1772184385974,251.32,5.977e-05,2]
[406782080,1772184386175,251.32,6.214e-05,2]
[406782081,1772184386369,251.32,6.451e-05,2]
[406782082,1772184386567,251.32,6.688e-05,2]
[406782083,1772184386768,251.32,6.925e-05,2]
[406782084,1772184386999,251.32,7.161e-05,2]
[406782085,1772184387192,251.32,7.398e-05,2]
[406782086,1772184387398,251.32,7.635e-05,2]
[406782087,1772184387581,251.32,7.872e-05,2]
[406782088,1772184387784,251.32,8.109e-05,2]
[406782095,1772184631336,-251.32,8.346e-05,2]
[406782096,1772184631350,-28.47428379,8.465e-05,2]
[406782097,1772184631362,-221.52571621,8.465e-05,2]
[406782098,1772184631374,-251.32,8.583e-05,2]
[406782099,1772184631384,-2463.02297255,8.658e-05,2]
[406782100,1772184631498,-26112.10081801,8.658e-05,2]
[406782101,1772184631510,-19334.96620944,8.658e-05,2]
[406782102,1772184631520,-250.0,8.798e-05,2]
[406782103,1772184631530,-251.32,8.82e-05,2]
[406782104,1772184631541,-251.32,9.057e-05,2]
[406782105,1772184631550,-157.0,9.18e-05,2]
[406782106,1772184631560,-2774.45855005,9.181e-05,2]
[406782107,1772184631570,-250.0,9.181e-05,2]
[406782108,1772184631579,-195.0,9.181e-05,2]
[406782109,1772184631590,-751.0852817,9.181e-05,2]
[406782110,1772184631600,-200.0,9.291e-05,2]
[406782111,1772184631609,-251.32,9.294e-05,2]
[406782112,1772184631619,-294.0,9.361e-05,2]
[406782113,1772184631628,-751.08528168,9.393e-05,2]
[406782114,1772184631638,-366.0,9.423e-05,2]
[406782115,1772184631648,-1138.544,9.457e-05,2]
[406782116,1772184631658,-157.447,9.457e-05,2]
[406782117,1772184631668,-5000.0,9.504e-05,2]
[406782118,1772184631677,-251.32,9.531e-05,2]
[406782119,1772184631687,-150.0,9.549e-05,2]
[406782120,1772184631697,-1000.0,9.549e-05,2]
[406782121,1772184631706,-22859.4902,9.55e-05,2]
[406782122,1772184631715,-12579.67078616,9.55e-05,2]
[406782123,1772184637384,-109499.27618608,9.55e-05,2]
[406782124,1772184637395,-387.75502244,9.55e-05,2]
[406782125,1772184637492,-1064.40417485,9.55e-05,2]
[406782126,1772184637548,-1154.38291172,9.55e-05,2]
[406782127,1772184637559,-88644.93111623,9.55e-05,2]
[406782128,1772184637659,-91.689,9.55e-05,2]
[406782168,1772184642674,-7913.22,9.55e-05,2]
[406782176,1772185196290,150.0,0.00011233,120]
[406782178,1772185831478,-248.26,8.725e-05,2]
[406782179,1772185831487,-162.74,8.914e-05,2]
[406782180,1772185831497,-354.71985383,9.166e-05,2]
[406782181,1772185831509,-579.76289887,9.166e-05,2]
[406782182,1772185831531,-122.8072473,9.166e-05,2]
[406782183,1772185831541,-250.36176056,9.249e-05,2]
[406782184,1772185831551,-300.0,9.249e-05,2]
[406782185,1772185831560,-908.00395542,9.25e-05,2]
[406782186,1772185831571,-1915.61048288,9.25e-05,2]
[406782187,1772185831583,-856.65432573,9.25e-05,2]
[406782188,1772185831594,-729.51283028,9.25e-05,2]
[406782189,1772185831631,-972.66991975,9.25e-05,2]
[406782190,1772185831650,-708.50603005,9.25e-05,2]
[406782206,1772185837727,-4945.28451343,9.25e-05,2]
[406782207,1772185837738,-882.12558727,9.25e-05,2]
[406782208,1772185837750,-634.59901641,9.25e-05,2]
[406782209,1772185837793,-320.78843878,9.25e-05,2]
[406782210,1772185837803,-252.39407896,9.25e-05,2]
[406782265,1772185839835,-2247.60592104,9.25e-05,2]
[406782266,1772185839845,-250.36176056,9.3e-05,2]
[406782267,1772185839856,-150.0,9.348e-05,2]